[Event "Turkish Cup 2022"]
[Site "Sakarya"]
[Date "2022.03.27"]
[Round "4.9"]
[White "Kirilmaz, Emre"]
[Black "Yasin, Hur"]
[Result "1-0"]
[ECO "D02"]
[WhiteElo "2229"]
[BlackElo "1931"]
[Annotator "NA"]
[PlyCount "81"]
[EventDate "2022.03.25"]
[EventType "swiss"]
[EventCountry "TUR"]
[SourceTitle "playchess.com"]
[Source "ChessBase"]
[SourceQuality "1"]
[TimeControl "5400+30"]

1. d4 {[%emt 0:11:00]} Nf6 {[%emt 0:01:00]} 2. Nf3 {[%emt 0:01:30]} e6 {[%emt 0:00:30]} 3. Bg5 {[%emt 0:00:30]} d5 {[%emt 0:00:30]} 4. c3 {[%emt 0:01:30]} Be7 {[%emt 0:02:30]} 5. Nbd2 {[%emt 0:00:30]} Ne4 {[%emt 0:01:30]} 6. Nxe4 {[%emt 0:08:30]} dxe4 {[%emt 0:00:30]} 7. Bxe7 {[%emt 0:00:30]} Qxe7 {[%emt 0:00:30]} 8. Nd2 {[%emt 0:00:30]} f5 {[%emt 0:00:00]} 9. f3 {[%emt 0:06:30]} e3 {[%emt 0:01:00]} 10. Nc4 {[%emt 0:00:30]} f4 {[%emt 0:00:00]} 11. g3 {[%emt 0:00:30]} Qg5 {[%emt 0:07:00]} 12. Rg1 {[%emt 0:02:30]} Qh6 {[%emt 0:00:30]} 13. Qd3 {[%emt 0:01:30]} g5 {[%emt 0:08:30]} 14. O-O-O {[%emt 0:03:30]} Qxh2 {[%emt 0:00:30]} 15. Rg2 {[%emt 0:00:30]} Qh6 {[%emt 0:00:30]} 16. gxf4 {[%emt 0:00:30]} gxf4 {[%emt 0:00:30]} 17. d5 {[%emt 0:26:30]} Qf6 {[%emt 0:05:30]} 18. Rh2 {[%emt 0:07:30]} h5 {[%emt 0:01:30]} 19. Bh3 {[%emt 0:04:30]} Na6 {[%emt 0:04:30]} 20. dxe6 {[%emt 0:05:10]} Nc5 {[%emt 0:12:30]} 21. Qd5 {[%emt 0:01:15]} Nxe6 {[%emt 0:01:30]} 22. Bxe6 {[%emt 0:05:16]} Bxe6 {[%emt 0:00:30]} 23. Qxb7 {[%emt 0:00:14]} Rd8 {[%emt 0:00:30]} 24. Qc6+ {[%emt 0:03:33]} Kf7 {[%emt 0:04:30]} 25. Qxc7+ {[%emt 0:00:10]} Kg6 {[%emt 0:01:30]} 26. Ne5+ {[%emt 0:04:13]} Kh6 {[%emt 0:02:30]} 27. Rdh1 {[%emt 0:00:10]} Kg5 {[%emt 0:00:30]} 28. Rg1+ {[%emt 0:03:04]} Kf5 {[%emt 0:01:30]} 29. Ng6 {[%emt 0:00:14]} Bf7 {[%emt 0:12:30]} 30. Qxf4+ {[%emt 0:00:44]} Ke6 {[%emt 0:00:00]} 31. Qc4+ {[%emt 0:01:46]} Rd5 {[%emt 0:05:00]} 32. Nxh8 {[%emt 0:00:04]} Qxh8 {[%emt 0:00:30]} 33. Rg5 {[%emt 0:00:30]} Kd6 {[%emt 0:00:30]} 34. Qa6+ {[%emt 0:00:44]} Ke7 {[%emt 0:01:30]} 35. Rxd5 {[%emt 0:00:03]} Bxd5 {[%emt 0:01:30]} 36. Qxa7+ {[%emt 0:00:30]} Kd6 {[%emt 0:00:30]} 37. Qxe3 {[%emt 0:00:18]} Kc6 {[%emt 0:01:30]} 38. Qg5 {[%emt 0:00:25]} Bf7 {[%emt 0:00:30]} 39. Rh4 {[%emt 0:00:05]} Qe8 {[%emt 0:03:47]} 40. Qf6+ {[%emt 0:00:19]} Kc5 {[%emt 0:01:32]} 41. Qd4+ {[%emt 0:00:27]} 1-0

[Event "Turkish Cup 2022"]
[Site "Sakarya"]
[Date "2022.03.27"]
[Round "4.10"]
[White "Gulbeyaz, Emir"]
[Black "Daghan, Devran"]
[Result "1-0"]
[ECO "A87"]
[WhiteElo "2218"]
[BlackElo "1985"]
[Annotator "NA"]
[PlyCount "61"]
[EventDate "2022.03.25"]
[EventType "swiss"]
[EventCountry "TUR"]
[SourceTitle "playchess.com"]
[Source "ChessBase"]
[SourceQuality "1"]
[TimeControl "5400+30"]

1. d4 {[%emt 0:08:00]} f5 {[%emt 0:01:00]} 2. Nf3 {[%emt 0:00:30]} Nf6 {[%emt 0:00:30]} 3. c4 {[%emt 0:00:00]} d6 {[%emt 0:00:30]} 4. g3 {[%emt 0:00:00]} g6 {[%emt 0:00:30]} 5. Bg2 {[%emt 0:00:30]} Bg7 {[%emt 0:00:30]} 6. O-O {[%emt 0:00:00]} O-O {[%emt 0:00:00]} 7. d5 {[%emt 0:00:00]} a5 {[%emt 0:06:00]} 8. Nc3 {[%emt 0:00:00]} Na6 {[%emt 0:02:30]} 9. Nd4 {[%emt 0:00:00]} Nc5 {[%emt 0:02:30]} 10. Rb1 {[%emt 0:00:30]} e5 {[%emt 0:06:30]} 11. dxe6 {[%emt 0:01:30]} c6 {[%emt 0:02:30]} 12. b3 {[%emt 0:06:30]} Qe7 {[%emt 0:10:30]} 13. Ba3 {[%emt 0:01:30]} Ra6 {[%emt 0:03:30]} 14. Qd2 {[%emt 0:18:30]} Rd8 {[%emt 0:01:30]} 15. Rfe1 {[%emt 0:01:30]} Nxe6 {[%emt 0:06:30]} 16. Nxe6 {[%emt 0:00:30]} Bxe6 {[%emt 0:01:30]} 17. e4 {[%emt 0:00:30]} fxe4 {[%emt 0:01:30]} 18. Nxe4 {[%emt 0:00:30]} Nxe4 {[%emt 0:01:30]} 19. Rxe4 {[%emt 0:00:30]} Qf7 {[%emt 0:01:30]} 20. Rbe1 {[%emt 0:01:30]} Bf5 {[%emt 0:12:30]} 21. Re7 {[%emt 0:00:00]} Qf6 {[%emt 0:00:00]} 22. Rxb7 {[%emt 0:02:00]} a4 {[%emt 0:06:00]} 23. b4 {[%emt 0:01:30]} Qc3 {[%emt 0:11:30]} 24. Rxg7+ {[%emt 0:00:00]} Qxg7 {[%emt 0:00:00]} 25. Bb2 {[%emt 0:00:00]} Qf8 {[%emt 0:02:00]} 26. Qd4 {[%emt 0:00:30]} g5 {[%emt 0:01:07]} 27. b5 {[%emt 0:00:00]} Ra5 {[%emt 0:02:27]} 28. Qh8+ {[%emt 0:01:00]} Kf7 {[%emt 0:00:30]} 29. Qf6+ {[%emt 0:00:00]} Kg8 {[%emt 0:00:00]} 30. Qxg5+ {[%emt 0:00:00]} Bg6 {[%emt 0:00:00]} 31. Bxc6 {[%emt 0:00:30]} 1-0

[Event "Turkish Cup 2022"]
[Site "Sakarya"]
[Date "2022.03.27"]
[Round "4.11"]
[White "Koc, Ilkay"]
[Black "Yazici, Ugur Doga"]
[Result "1/2-1/2"]
[ECO "D78"]
[WhiteElo "1995"]
[BlackElo "2195"]
[Annotator "NA"]
[PlyCount "97"]
[EventDate "2022.03.25"]
[EventType "swiss"]
[EventCountry "TUR"]
[SourceTitle "playchess.com"]
[Source "ChessBase"]
[SourceQuality "1"]
[TimeControl "5400+30"]

1. d4 {[%emt 0:01:00]} d5 {[%emt 0:06:00]} 2. Nf3 {[%emt 0:00:00]} Nf6 {[%emt 0:00:30]} 3. g3 {[%emt 0:00:00]} g6 {[%emt 0:00:30]} 4. Bg2 {[%emt 0:00:30]} Bg7 {[%emt 0:00:30]} 5. O-O {[%emt 0:00:30]} O-O {[%emt 0:00:00]} 6. c4 {[%emt 0:00:30]} c6 {[%emt 0:00:00]} 7. Nc3 {[%emt 0:04:30]} Ne4 {[%emt 0:01:30]} 8. Qb3 {[%emt 0:01:30]} Nxc3 {[%emt 0:01:30]} 9. bxc3 {[%emt 0:00:00]} dxc4 {[%emt 0:01:30]} 10. Qxc4 {[%emt 0:00:00]} Nd7 {[%emt 0:01:30]} 11. Rd1 {[%emt 0:01:30]} Qa5 {[%emt 0:07:30]} 12. a4 {[%emt 0:12:30]} Nb6 {[%emt 0:02:30]} 13. Qb4 {[%emt 0:07:30]} Qxb4 {[%emt 0:02:30]} 14. cxb4 {[%emt 0:03:30]} a5 {[%emt 0:01:30]} 15. b5 {[%emt 0:01:30]} cxb5 {[%emt 0:09:30]} 16. axb5 {[%emt 0:00:00]} Nc4 {[%emt 0:06:30]} 17. Bf4 {[%emt 0:08:00]} Bd7 {[%emt 0:03:30]} 18. Rdb1 {[%emt 0:01:30]} Rac8 {[%emt 0:07:30]} 19. b6 {[%emt 0:10:30]} Bc6 {[%emt 0:05:30]} 20. Bc7 {[%emt 0:03:30]} Ra8 {[%emt 0:17:30]} 21. Rc1 {[%emt 0:03:30]} Nd6 {[%emt 0:00:30]} 22. Rxc6 {[%emt 0:00:30]} bxc6 {[%emt 0:00:30]} 23. Ne5 {[%emt 0:00:30]} Bxe5 {[%emt 0:01:30]} 24. dxe5 {[%emt 0:02:30]} Nb5 {[%emt 0:00:30]} 25. b7 {[%emt 0:03:30]} Nxc7 {[%emt 0:00:00]} 26. bxa8=Q {[%emt 0:00:30]} Rxa8 {[%emt 0:00:00]} 27. Bxc6 {[%emt 0:00:00]} Ra6 {[%emt 0:00:30]} 28. Rc1 {[%emt 0:00:00]} Ne6 {[%emt 0:01:30]} 29. Ba4 {[%emt 0:00:30]} Ra8 {[%emt 0:02:30]} 30. e3 {[%emt 0:02:30]} Rb8 {[%emt 0:00:30]} 31. Kg2 {[%emt 0:00:30]} Kg7 {[%emt 0:00:31]} 32. h4 {[%emt 0:02:30]} Rb4 {[%emt 0:01:38]} 33. Bd7 {[%emt 0:00:30]} Nf8 {[%emt 0:01:08]} 34. Be8 {[%emt 0:00:30]} Rb8 {[%emt 0:01:51]} 35. Ba4 {[%emt 0:00:00]} Ne6 {[%emt 0:00:54]} 36. Bd7 {[%emt 0:03:00]} Rb6 {[%emt 0:00:48]} 37. Rc8 {[%emt 0:01:30]} Rb1 {[%emt 0:01:56]} 38. Bxe6 {[%emt 0:12:32]} fxe6 {[%emt 0:00:02]} 39. Re8 {[%emt 0:01:38]} Kf7 {[%emt 0:00:12]} 40. Ra8 {[%emt 0:01:54]} Rb5 {[%emt 0:00:27]} 41. f4 {[%emt 0:01:24]} Rb2+ {[%emt 0:00:30]} 42. Kf3 {[%emt 0:00:30]} Ra2 {[%emt 0:00:00]} 43. Kg4 {[%emt 0:04:44]} a4 {[%emt 0:01:20]} 44. Kf3 {[%emt 0:00:15]} a3 {[%emt 0:00:30]} 45. Ke4 {[%emt 0:00:17]} Ra1 {[%emt 0:00:32]} 46. Kf3 {[%emt 0:00:02]} h6 {[%emt 0:03:54]} 47. Kg2 {[%emt 0:00:38]} a2 {[%emt 0:02:07]} 48. Kh2 {[%emt 0:00:13]} g5 {[%emt 0:00:32]} 49. h5 {[%emt 0:00:51]} 1/2-1/2

[Event "Turkish Cup 2022"]
[Site "Sakarya"]
[Date "2022.03.27"]
[Round "4.13"]
[White "Guven, Oguz Kagan"]
[Black "Demirag, Gokhan"]
[Result "1-0"]
[ECO "A11"]
[WhiteElo "2157"]
[BlackElo "1946"]
[Annotator "NA"]
[PlyCount "37"]
[EventDate "2022.03.25"]
[EventType "swiss"]
[EventCountry "TUR"]
[SourceTitle "playchess.com"]
[Source "ChessBase"]
[SourceQuality "1"]
[TimeControl "5400+30"]

1. Nf3 {[%emt 0:08:00]} d5 {[%emt 0:01:00]} 2. g3 {[%emt 0:00:30]} c6 {[%emt 0:00:00]} 3. Bg2 {[%emt 0:00:30]} Bg4 {[%emt 0:00:00]} 4. O-O {[%emt 0:00:30]} Nd7 {[%emt 0:00:30]} 5. c4 {[%emt 0:00:00]} e6 {[%emt 0:07:30]} 6. d3 {[%emt 0:00:00]} Bxf3 {[%emt 0:00:30]} 7. Bxf3 {[%emt 0:00:30]} dxc4 {[%emt 0:02:30]} 8. dxc4 {[%emt 0:01:30]} Ne5 {[%emt 0:01:30]} 9. Qb3 {[%emt 0:00:30]} Nxf3+ {[%emt 0:00:30]} 10. Qxf3 {[%emt 0:00:00]} Qf6 {[%emt 0:01:30]} 11. Qb3 {[%emt 0:02:00]} O-O-O {[%emt 0:00:30]} 12. Be3 {[%emt 0:08:30]} Kb8 {[%emt 0:07:30]} 13. Nc3 {[%emt 0:05:30]} Qf5 {[%emt 0:05:30]} 14. Rfd1 {[%emt 0:02:30]} Rxd1+ {[%emt 0:08:30]} 15. Rxd1 {[%emt 0:00:30]} Nf6 {[%emt 0:06:30]} 16. Rd8+ {[%emt 0:17:30]} Kc7 {[%emt 0:00:30]} 17. Qd1 {[%emt 0:05:30]} Rg8 {[%emt 0:02:30]} 18. Bxa7 {[%emt 0:01:30]} Bc5 {[%emt 0:03:30]} 19. Bb8+ {[%emt 0:00:30]} 1-0

[Event "Turkish Cup 2022"]
[Site "Sakarya"]
[Date "2022.03.27"]
[Round "4.14"]
[White "Sahin, Huseyin"]
[Black "Kul, Ozdemir Efe"]
[Result "0-1"]
[ECO "A80"]
[WhiteElo "1788"]
[BlackElo "2042"]
[Annotator "NA"]
[PlyCount "102"]
[EventDate "2022.03.25"]
[EventType "swiss"]
[EventCountry "TUR"]
[SourceTitle "playchess.com"]
[Source "ChessBase"]
[SourceQuality "1"]
[TimeControl "5400+30"]

1. d4 {[%emt 0:01:00]} f5 {[%emt 0:01:00]} 2. f4 {[%emt 0:00:30]} Nf6 {[%emt 0:01:30]} 3. Nf3 {[%emt 0:00:30]} g6 {[%emt 0:00:30]} 4. e3 {[%emt 0:00:00]} Bg7 {[%emt 0:00:30]} 5. Bc4 {[%emt 0:00:00]} e6 {[%emt 0:03:30]} 6. O-O {[%emt 0:00:30]} O-O {[%emt 0:00:30]} 7. Qe2 {[%emt 0:00:30]} b6 {[%emt 0:02:30]} 8. Nbd2 {[%emt 0:00:30]} Bb7 {[%emt 0:01:30]} 9. c3 {[%emt 0:00:30]} h6 {[%emt 0:00:00]} 10. b3 {[%emt 0:00:30]} Kh7 {[%emt 0:01:00]} 11. Bb2 {[%emt 0:00:30]} Re8 {[%emt 0:04:30]} 12. Bd3 {[%emt 0:00:30]} Ne4 {[%emt 0:00:30]} 13. a4 {[%emt 0:02:30]} a6 {[%emt 0:00:30]} 14. Bc2 {[%emt 0:02:30]} d6 {[%emt 0:03:30]} 15. Nxe4 {[%emt 0:04:30]} fxe4 {[%emt 0:00:30]} 16. Nd2 {[%emt 0:00:30]} d5 {[%emt 0:01:30]} 17. Qg4 {[%emt 0:01:30]} Nd7 {[%emt 0:03:30]} 18. Rf2 {[%emt 0:03:30]} Bf8 {[%emt 0:02:30]} 19. Raf1 {[%emt 0:01:30]} Nf6 {[%emt 0:02:30]} 20. Qe2 {[%emt 0:12:30]} h5 {[%emt 0:01:30]} 21. g3 {[%emt 0:02:30]} Bd6 {[%emt 0:04:30]} 22. h3 {[%emt 0:00:30]} Rh8 {[%emt 0:00:30]} 23. c4 {[%emt 0:01:30]} a5 {[%emt 0:02:30]} 24. g4 {[%emt 0:03:30]} hxg4 {[%emt 0:00:30]} 25. hxg4 {[%emt 0:00:30]} c6 {[%emt 0:00:30]} 26. Bd1 {[%emt 0:08:30]} Kg7 {[%emt 0:00:30]} 27. Rh2 {[%emt 0:00:30]} Rxh2 {[%emt 0:20:30]} 28. Qxh2 {[%emt 0:00:30]} Qe7 {[%emt 0:00:30]} 29. g5 {[%emt 0:12:30]} Nh5 {[%emt 0:00:30]} 30. Nxe4 {[%emt 0:02:30]} dxe4 {[%emt 0:04:30]} 31. Bxh5 {[%emt 0:00:30]} Rh8 {[%emt 0:04:30]} 32. c5 {[%emt 0:03:30]} Qxg5+ {[%emt 0:08:30]} 33. Qg2 {[%emt 0:09:30]} Qxg2+ {[%emt 0:05:30]} 34. Kxg2 {[%emt 0:00:30]} Rxh5 {[%emt 0:00:00]} 35. d5+ {[%emt 0:07:02]} Kf7 {[%emt 0:01:00]} 36. dxc6 {[%emt 0:00:36]} Bxc6 {[%emt 0:05:08]} 37. cxd6 {[%emt 0:00:04]} Rd5 {[%emt 0:00:54]} 38. Be5 {[%emt 0:00:18]} Rd2+ {[%emt 0:01:18]} 39. Kg3 {[%emt 0:00:47]} Rd3 {[%emt 0:01:52]} 40. Rh1 {[%emt 0:03:31]} Rxe3+ {[%emt 0:01:00]} 41. Kf2 {[%emt 0:01:27]} Rxb3 {[%emt 0:01:37]} 42. Rh7+ {[%emt 0:00:50]} Ke8 {[%emt 0:00:26]} 43. Rh8+ {[%emt 0:08:50]} Kd7 {[%emt 0:00:46]} 44. Rh7+ {[%emt 0:00:08]} Ke8 {[%emt 0:06:59]} 45. Bf6 {[%emt 0:04:51]} Rd3 {[%emt 0:00:49]} 46. Re7+ {[%emt 0:01:12]} Kf8 {[%emt 0:00:33]} 47. Be5 {[%emt 0:01:32]} Bxa4 {[%emt 0:00:40]} 48. Rxe6 {[%emt 0:00:03]} e3+ {[%emt 0:00:51]} 49. Ke1 {[%emt 0:00:38]} Bb5 {[%emt 0:01:45]} 50. d7 {[%emt 0:01:33]} Bxd7 {[%emt 0:00:37]} 51. Rxb6 {[%emt 0:00:02]} Bg4 {[%emt 0:00:20]} 0-1

[Event "Turkish Cup 2022"]
[Site "Sakarya"]
[Date "2022.03.27"]
[Round "4.15"]
[White "Bagci, Hikmet"]
[Black "Korkmaz, Necmettin"]
[Result "1-0"]
[ECO "C80"]
[WhiteElo "1630"]
[BlackElo "2076"]
[Annotator "NA"]
[PlyCount "153"]
[EventDate "2022.03.25"]
[EventType "swiss"]
[EventCountry "TUR"]
[SourceTitle "playchess.com"]
[Source "ChessBase"]
[SourceQuality "1"]
[TimeControl "5400+30"]

1. e4 {[%emt 0:01:00]} e5 {[%emt 0:01:00]} 2. Nf3 {[%emt 0:00:00]} Nc6 {[%emt 0:00:30]} 3. Bb5 {[%emt 0:00:00]} a6 {[%emt 0:00:30]} 4. Ba4 {[%emt 0:00:30]} Nf6 {[%emt 0:00:30]} 5. O-O {[%emt 0:00:00]} Nxe4 {[%emt 0:00:30]} 6. Re1 {[%emt 0:00:00]} Nc5 {[%emt 0:00:30]} 7. Nxe5 {[%emt 0:01:30]} Nxe5 {[%emt 0:01:30]} 8. Rxe5+ {[%emt 0:00:30]} Be7 {[%emt 0:00:30]} 9. Nc3 {[%emt 0:00:30]} O-O {[%emt 0:02:30]} 10. Bb3 {[%emt 0:00:30]} Nxb3 {[%emt 0:03:30]} 11. axb3 {[%emt 0:01:30]} c6 {[%emt 0:00:30]} 12. d3 {[%emt 0:03:30]} d5 {[%emt 0:00:30]} 13. Bd2 {[%emt 0:01:30]} Bd6 {[%emt 0:05:30]} 14. Re1 {[%emt 0:00:30]} d4 {[%emt 0:09:30]} 15. Ne4 {[%emt 0:00:30]} Bc7 {[%emt 0:00:30]} 16. Qh5 {[%emt 0:01:30]} Qd5 {[%emt 0:07:30]} 17. Qxd5 {[%emt 0:04:30]} cxd5 {[%emt 0:00:00]} 18. Ng5 {[%emt 0:01:30]} Bd8 {[%emt 0:04:00]} 19. Nf3 {[%emt 0:00:00]} Bf6 {[%emt 0:02:30]} 20. Bb4 {[%emt 0:00:00]} Bg4 {[%emt 0:09:30]} 21. Bxf8 {[%emt 0:00:30]} Kxf8 {[%emt 0:00:30]} 22. Ne5 {[%emt 0:00:30]} Be6 {[%emt 0:00:30]} 23. f4 {[%emt 0:02:30]} Rc8 {[%emt 0:01:30]} 24. Rac1 {[%emt 0:00:30]} g5 {[%emt 0:02:30]} 25. g3 {[%emt 0:00:30]} gxf4 {[%emt 0:00:30]} 26. gxf4 {[%emt 0:00:30]} Ke7 {[%emt 0:01:30]} 27. Nf3 {[%emt 0:04:30]} Kd6 {[%emt 0:00:30]} 28. Kf2 {[%emt 0:00:30]} h6 {[%emt 0:04:30]} 29. Rg1 {[%emt 0:01:30]} Bf5 {[%emt 0:00:00]} 30. Rge1 {[%emt 0:04:30]} Rg8 {[%emt 0:01:00]} 31. Re2 {[%emt 0:02:30]} Rg4 {[%emt 0:00:30]} 32. h3 {[%emt 0:00:30]} Rxf4 {[%emt 0:04:30]} 33. Kg3 {[%emt 0:00:30]} Bg5 {[%emt 0:00:30]} 34. Nxg5 {[%emt 0:00:30]} hxg5 {[%emt 0:00:30]} 35. Rh1 {[%emt 0:00:30]} Rh4 {[%emt 0:01:30]} 36. Re8 {[%emt 0:02:30]} Be6 {[%emt 0:03:30]} 37. Rg8 {[%emt 0:02:30]} Rh5 {[%emt 0:16:37]} 38. h4 {[%emt 0:00:00]} gxh4+ {[%emt 0:04:16]} 39. Rxh4 {[%emt 0:00:00]} Re5 {[%emt 0:00:07]} 40. Kf2 {[%emt 0:01:30]} Kc5 {[%emt 0:02:23]} 41. c3 {[%emt 0:00:30]} Rf5+ {[%emt 0:00:00]} 42. Ke2 {[%emt 0:00:30]} dxc3 {[%emt 0:01:29]} 43. bxc3 {[%emt 0:00:30]} Bd7 {[%emt 0:02:15]} 44. Rh6 {[%emt 0:01:30]} Be6 {[%emt 0:00:28]} 45. Rh4 {[%emt 0:04:30]} Bd7 {[%emt 0:00:11]} 46. Rd8 {[%emt 0:00:30]} Bc6 {[%emt 0:00:24]} 47. Rb4 {[%emt 0:00:30]} b5 {[%emt 0:00:55]} 48. Rh4 {[%emt 0:03:30]} a5 {[%emt 0:03:06]} 49. b4+ {[%emt 0:00:30]} axb4 {[%emt 0:00:30]} 50. Rxb4 {[%emt 0:00:00]} Re5+ {[%emt 0:01:14]} 51. Kd2 {[%emt 0:00:00]} Re7 {[%emt 0:00:10]} 52. Rf4 {[%emt 0:00:30]} Bd7 {[%emt 0:00:37]} 53. Rf8 {[%emt 0:04:30]} Be6 {[%emt 0:00:52]} 54. Ra8 {[%emt 0:02:30]} Rb7 {[%emt 0:00:38]} 55. Ra6 {[%emt 0:00:00]} Rc7 {[%emt 0:02:49]} 56. Rb4 {[%emt 0:01:00]} Rc6 {[%emt 0:01:56]} 57. d4+ {[%emt 0:00:30]} Kd6 {[%emt 0:00:06]} 58. Ra5 {[%emt 0:00:00]} Ke7 {[%emt 0:01:07]} 59. Raxb5 {[%emt 0:00:00]} Ra6 {[%emt 0:00:32]} 60. Rb7+ {[%emt 0:00:30]} Kf6 {[%emt 0:00:10]} 61. R7b6 {[%emt 0:01:30]} Ra2+ {[%emt 0:00:39]} 62. Rb2 {[%emt 0:00:30]} Ra4 {[%emt 0:00:00]} 63. Kc2 {[%emt 0:00:30]} Kf5 {[%emt 0:01:11]} 64. Kb3 {[%emt 0:00:30]} Ra8 {[%emt 0:00:13]} 65. Re2 {[%emt 0:00:30]} Rc8 {[%emt 0:00:30]} 66. Re5+ {[%emt 0:00:30]} Kf4 {[%emt 0:00:31]} 67. Rexe6 {[%emt 0:00:30]} fxe6 {[%emt 0:01:01]} 68. Rxe6 {[%emt 0:00:30]} Rb8+ {[%emt 0:00:30]} 69. Kc2 {[%emt 0:00:00]} Rb5 {[%emt 0:00:56]} 70. Kd3 {[%emt 0:00:00]} Ra5 {[%emt 0:00:26]} 71. Rf6+ {[%emt 0:00:30]} Kg5 {[%emt 0:00:14]} 72. Rc6 {[%emt 0:01:30]} Kf5 {[%emt 0:00:50]} 73. Rc5 {[%emt 0:00:30]} Rxc5 {[%emt 0:00:30]} 74. dxc5 {[%emt 0:00:00]} Kf6 {[%emt 0:00:23]} 75. Kd4 {[%emt 0:02:00]} Ke6 {[%emt 0:00:30]} 76. c6 {[%emt 0:00:30]} Kd6 {[%emt 0:00:30]} 77. c7 {[%emt 0:00:00]} 1-0

[Event "Turkish Cup 2022"]
[Site "Sakarya"]
[Date "2022.03.27"]
[Round "4.17"]
[White "Temizer, Umut"]
[Black "Kilic, Nurullah"]
[Result "1-0"]
[ECO "C55"]
[WhiteElo "1972"]
[BlackElo "1171"]
[Annotator "NA"]
[PlyCount "89"]
[EventDate "2022.03.25"]
[EventType "swiss"]
[EventCountry "TUR"]
[SourceTitle "playchess.com"]
[Source "ChessBase"]
[SourceQuality "1"]
[TimeControl "5400+30"]

1. e4 {[%emt 0:01:00]} e5 {[%emt 0:01:00]} 2. Nf3 {[%emt 0:00:00]} Nc6 {[%emt 0:01:30]} 3. Bc4 {[%emt 0:00:00]} Nf6 {[%emt 0:00:30]} 4. d3 {[%emt 0:00:30]} Be7 {[%emt 0:00:30]} 5. O-O {[%emt 0:00:30]} O-O {[%emt 0:01:30]} 6. c3 {[%emt 0:04:30]} d5 {[%emt 0:01:30]} 7. exd5 {[%emt 0:00:00]} Nxd5 {[%emt 0:01:30]} 8. Re1 {[%emt 0:01:00]} Bg4 {[%emt 0:01:30]} 9. h3 {[%emt 0:01:30]} Bh5 {[%emt 0:02:30]} 10. Nbd2 {[%emt 0:24:30]} Nb6 {[%emt 0:03:30]} 11. Bb5 {[%emt 0:03:30]} f6 {[%emt 0:07:30]} 12. Ne4 {[%emt 0:21:30]} Kh8 {[%emt 0:10:30]} 13. Ng3 {[%emt 0:02:30]} Bg6 {[%emt 0:03:30]} 14. Nh4 {[%emt 0:13:30]} Bf7 {[%emt 0:07:30]} 15. Ngf5 {[%emt 0:03:30]} a6 {[%emt 0:05:30]} 16. Bxc6 {[%emt 0:01:15]} bxc6 {[%emt 0:04:30]} 17. Qg4 {[%emt 0:00:35]} Rg8 {[%emt 0:03:30]} 18. Re4 {[%emt 0:01:59]} g6 {[%emt 0:05:30]} 19. Nxe7 {[%emt 0:03:21]} Qxe7 {[%emt 0:01:30]} 20. Qg3 {[%emt 0:01:00]} Bd5 {[%emt 0:01:30]} 21. Re2 {[%emt 0:00:42]} Rae8 {[%emt 0:03:30]} 22. c4 {[%emt 0:02:18]} Bf7 {[%emt 0:01:30]} 23. b3 {[%emt 0:00:11]} Qd6 {[%emt 0:00:30]} 24. Bb2 {[%emt 0:00:52]} c5 {[%emt 0:01:30]} 25. Rf1 {[%emt 0:03:22]} Nd7 {[%emt 0:05:30]} 26. Re3 {[%emt 0:00:30]} g5 {[%emt 0:04:33]} 27. Nf5 {[%emt 0:00:53]} Qe6 {[%emt 0:00:27]} 28. Qf3 {[%emt 0:03:16]} Bg6 {[%emt 0:01:32]} 29. Nh6 {[%emt 0:00:55]} Rgf8 {[%emt 0:00:08]} 30. Rfe1 {[%emt 0:00:11]} Re7 {[%emt 0:02:04]} 31. Qg3 {[%emt 0:02:47]} Rfe8 {[%emt 0:01:43]} 32. h4 {[%emt 0:00:05]} gxh4 {[%emt 0:01:41]} 33. Qxh4 {[%emt 0:00:07]} Qd6 {[%emt 0:02:14]} 34. g4 {[%emt 0:01:01]} Rg7 {[%emt 0:01:56]} 35. f4 {[%emt 0:00:31]} Rf8 {[%emt 0:01:00]} 36. f5 {[%emt 0:02:43]} Bf7 {[%emt 0:01:15]} 37. Kf1 {[%emt 0:00:54]} Bg8 {[%emt 0:01:29]} 38. R1e2 {[%emt 0:00:25]} Qe7 {[%emt 0:02:47]} 39. g5 {[%emt 0:01:15]} Rxg5 {[%emt 0:01:25]} 40. Rg2 {[%emt 0:00:39]} Qg7 {[%emt 0:00:57]} 41. Reg3 {[%emt 0:00:27]} Rxg3 {[%emt 0:01:42]} 42. Rxg3 {[%emt 0:00:30]} Qe7 {[%emt 0:00:00]} 43. Qg4 {[%emt 0:00:00]} Bxc4 {[%emt 0:01:14]} 44. dxc4 {[%emt 0:00:17]} Nb8 {[%emt 0:00:24]} 45. Qg8+ {[%emt 0:00:01]} 1-0

[Event "Turkish Cup 2022"]
[Site "Sakarya"]
[Date "2022.03.27"]
[Round "4.18"]
[White "Yurtseven, Melih"]
[Black "Colak, Tugay"]
[Result "1-0"]
[ECO "A09"]
[WhiteElo "2388"]
[BlackElo "1701"]
[Annotator "NA"]
[PlyCount "71"]
[EventDate "2022.03.25"]
[EventType "swiss"]
[EventCountry "TUR"]
[SourceTitle "playchess.com"]
[Source "ChessBase"]
[SourceQuality "1"]
[TimeControl "5400+30"]

1. Nf3 {[%emt 0:01:00]} d5 {[%emt 0:01:00]} 2. c4 {[%emt 0:00:30]} d4 {[%emt 0:00:00]} 3. b4 {[%emt 0:00:30]} c5 {[%emt 0:00:00]} 4. g3 {[%emt 0:00:30]} Nf6 {[%emt 0:02:30]} 5. a3 {[%emt 0:01:30]} Nbd7 {[%emt 0:02:30]} 6. Qa4 {[%emt 0:02:30]} Qc7 {[%emt 0:07:30]} 7. Bg2 {[%emt 0:02:30]} e5 {[%emt 0:05:30]} 8. d3 {[%emt 0:00:30]} Bd6 {[%emt 0:02:30]} 9. O-O {[%emt 0:01:30]} O-O {[%emt 0:00:30]} 10. Nbd2 {[%emt 0:00:00]} Nb6 {[%emt 0:09:30]} 11. Qb3 {[%emt 0:01:00]} Bd7 {[%emt 0:10:30]} 12. b5 {[%emt 0:00:30]} a6 {[%emt 0:01:30]} 13. a4 {[%emt 0:07:30]} axb5 {[%emt 0:07:30]} 14. cxb5 {[%emt 0:01:30]} Be6 {[%emt 0:00:30]} 15. Nc4 {[%emt 0:00:30]} Bd5 {[%emt 0:07:30]} 16. Bg5 {[%emt 0:02:30]} e4 {[%emt 0:04:30]} 17. Nfd2 {[%emt 0:01:30]} exd3 {[%emt 0:04:30]} 18. exd3 {[%emt 0:03:30]} Bxg2 {[%emt 0:01:30]} 19. Kxg2 {[%emt 0:00:30]} Nxc4 {[%emt 0:03:30]} 20. Nxc4 {[%emt 0:01:30]} Nd5 {[%emt 0:04:30]} 21. a5 {[%emt 0:00:30]} Qd7 {[%emt 0:07:56]} 22. Bd2 {[%emt 0:01:30]} Bc7 {[%emt 0:03:22]} 23. Rfe1 {[%emt 0:02:30]} b6 {[%emt 0:00:48]} 24. a6 {[%emt 0:02:30]} h5 {[%emt 0:03:58]} 25. h4 {[%emt 0:11:30]} Qg4 {[%emt 0:02:50]} 26. Re4 {[%emt 0:03:30]} Qd7 {[%emt 0:00:57]} 27. Rae1 {[%emt 0:00:30]} Nb4 {[%emt 0:04:33]} 28. Re7 {[%emt 0:01:30]} Qd5+ {[%emt 0:00:37]} 29. f3 {[%emt 0:02:30]} Bd6 {[%emt 0:00:54]} 30. Rd7 {[%emt 0:03:30]} Rfd8 {[%emt 0:00:13]} 31. Rxd6 {[%emt 0:00:30]} Rxd6 {[%emt 0:00:30]} 32. Re5 {[%emt 0:00:00]} Re6 {[%emt 0:01:23]} 33. Rxd5 {[%emt 0:00:00]} Nxd5 {[%emt 0:00:04]} 34. f4 {[%emt 0:02:30]} Re2+ {[%emt 0:00:30]} 35. Kf1 {[%emt 0:00:30]} Rae8 {[%emt 0:00:30]} 36. Ne5 {[%emt 0:00:30]} 1-0